fUST/lending_fUST_20250203
["ID","MTS","AMOUNT","RATE_DAILY","PERIOD"]
[351359900,1738540241455,-990.45,0.00016575,2]
[351359901,1738540241464,-500.0,0.00016575,2]
[351359902,1738540241473,-509.31197513,0.00016575,2]
[351359903,1738540241485,-561.54,0.00016575,2]
[351359904,1738540241495,-2187.48256467,0.00016575,2]
[351359905,1738540241752,-1178.65,0.00016438,2]
[351359906,1738540241762,-4306.04743533,0.00016575,2]
[351359907,1738540241772,-500.0,0.00016575,2]
[351359908,1738540241782,-733.5,0.00016575,2]
[351359909,1738540241793,-500.0,0.00016575,2]
[351359910,1738540241802,-500.0,0.00016575,2]
[351359911,1738540241812,-500.0,0.00016575,2]
[351359912,1738540241821,-500.0,0.00016575,2]
[351359913,1738540241831,-500.0,0.00016575,2]
[351359914,1738540241840,-500.0,0.00016575,2]
[351359915,1738540241850,-500.0,0.00016575,2]
[351359916,1738540241860,-500.0,0.00016575,2]
[351359917,1738540241871,-1104.1,0.00016575,2]
[351359918,1738540241880,-883.74,0.00016575,2]
[351359919,1738540241890,-1189.38,0.00016575,2]
[351359920,1738540241899,-500.0,0.00016575,2]
[351359921,1738540241911,-500.0,0.00016575,2]
[351359922,1738540241921,-500.0,0.00016575,2]
[351359923,1738540241931,-563.36,0.00016575,2]
[351359924,1738540241941,-500.0,0.00016575,2]
[351359925,1738540241950,-3477.47,0.00016575,2]
[351359926,1738540241961,-500.0,0.00016575,2]
[351359927,1738540241971,-500.0,0.00016575,2]
[351359928,1738540241983,-190.05213036,0.00016575,2]
[351359929,1738540241992,-2090.99,0.00016575,2]
[351359930,1738540242002,-500.0,0.00016575,2]
[351359931,1738540242012,-500.0,0.00016575,2]
[351359932,1738540242022,-509.24,0.00016575,2]
[351359933,1738540242031,-500.0,0.00016575,2]
[351359934,1738540242041,-500.0,0.00016575,2]
[351359935,1738540242051,-500.0,0.00016575,2]
[351359936,1738540242062,-500.0,0.00016575,2]
[351359937,1738540242071,-1182.98,0.00016575,2]
[351359938,1738540242082,-1178.65,0.00016575,2]
[351359939,1738540242092,-151.0,0.00016665,2]
[351359940,1738540242102,-500.0,0.00016711,2]
[351359941,1738540242113,-500.0,0.00016711,2]
[351359942,1738540242123,-500.0,0.00016711,2]
[351359943,1738540242132,-500.0,0.00016711,2]
[351359944,1738540242142,-151.0,0.00016712,2]
[351359945,1738540242152,-504.46997038,0.00016712,2]
[351359946,1738540242162,-276.33,0.00016712,2]
[351359947,1738540242268,-460.52286005,0.00016712,2]
[351359948,1738540242277,-500.0,0.00016712,2]
[351359949,1738540242287,-501.58837712,0.00016712,2]
[351359950,1738540242296,-500.0,0.00016712,2]
[351359951,1738540242306,-500.0,0.00016712,2]
[351359952,1738540242316,-500.0,0.00016712,2]
[351359953,1738540242325,-500.0,0.00016712,2]
[351359954,1738540242335,-500.0,0.00016712,2]
[351359955,1738540242345,-500.0,0.00016712,2]
[351359956,1738540242355,-500.0,0.00016712,2]
[351359957,1738540242364,-500.0,0.00016712,2]
[351359958,1738540242374,-500.0,0.00016712,2]
[351359959,1738540242383,-500.0,0.00016712,2]
[351359960,1738540242393,-692.49,0.00016712,2]
[351359961,1738540242403,-947.14,0.00016712,2]
[351359962,1738540242412,-1799.07,0.00016712,2]
[351359963,1738540242422,-1498.01,0.00016712,2]
[351359964,1738540242431,-500.0,0.00016712,2]
[351359965,1738540242441,-500.0,0.00016712,2]
[351359966,1738540242451,-500.0,0.00016712,2]
[351359967,1738540242461,-500.0,0.00016712,2]
[351359968,1738540242471,-990.45,0.00016712,2]
[351359969,1738540242483,-6493.53,0.00016712,2]
[351359970,1738540242493,-561.54,0.00016712,2]
[351359971,1738540242503,-500.0,0.00016712,2]
[351359972,1738540242514,-733.5,0.00016712,2]
[351359973,1738540242523,-500.0,0.00016712,2]
[351359974,1738540242532,-500.0,0.00016712,2]
[351359975,1738540242541,-500.0,0.00016712,2]
[351359976,1738540242550,-500.0,0.00016712,2]
[351359977,1738540242559,-500.0,0.00016712,2]
[351359978,1738540242569,-500.0,0.00016712,2]
[351359979,1738540242578,-1104.1,0.00016712,2]
[351359980,1738540242588,-883.74,0.00016712,2]
[351359981,1738540242597,-1189.38,0.00016712,2]
[351359982,1738540242606,-500.0,0.00016712,2]
[351359983,1738540242615,-500.0,0.00016712,2]
[351359984,1738540242625,-563.36,0.00016712,2]
[351359985,1738540242635,-500.0,0.00016712,2]
[351359986,1738540242646,-3477.47,0.00016712,2]
[351359987,1738540242656,-500.0,0.00016712,2]
[351359988,1738540242666,-2090.99,0.00016712,2]
[351359989,1738540242675,-422.25,0.00016712,2]
[351359990,1738540242685,-500.0,0.00016712,2]
[351359991,1738540242694,-509.24,0.00016712,2]
[351359992,1738540242704,-500.0,0.00016712,2]
[351359993,1738540242713,-1182.98,0.00016712,2]
[351359994,1738540242722,-1178.65,0.00016712,2]
[351359995,1738540242737,-364.14903793,0.00016784,2]
[351359996,1738540242747,-500.0,0.00016837,2]
[351359997,1738540242757,-553.03525313,0.00016848,2]
[351359998,1738540242766,-500.0,0.00016848,2]
[351359999,1738540242776,-614.81863097,0.00016848,2]
[351360000,1738540242786,-500.0,0.00016849,2]
[351360001,1738540242795,-500.0,0.00016849,2]
[351360002,1738540242806,-500.0,0.00016849,2]
[351360003,1738540242816,-500.0,0.00016849,2]
[351360004,1738540242826,-500.0,0.00016849,2]
[351360005,1738540242836,-500.0,0.00016849,2]
[351360006,1738540242845,-500.0,0.00016849,2]
[351360007,1738540242855,-500.0,0.00016849,2]
[351360008,1738540242865,-500.0,0.00016849,2]
[351360009,1738540242876,-692.49,0.00016849,2]
[351360010,1738540242886,-947.14,0.00016849,2]
[351360011,1738540242895,-1799.07,0.00016849,2]
[351360012,1738540242903,-1498.01,0.00016849,2]
[351360013,1738540242914,-500.0,0.00016849,2]
[351360014,1738540242922,-500.0,0.00016849,2]
[351360015,1738540242929,-500.0,0.00016849,2]
[351360016,1738540242938,-500.0,0.00016849,2]
[351360017,1738540242946,-990.45,0.00016849,2]
[351360018,1738540242955,-6493.53,0.00016849,2]
[351360019,1738540242964,-561.54,0.00016849,2]
[351360020,1738540242974,-500.0,0.00016849,2]
[351360021,1738540242992,-733.5,0.00016849,2]
[351360022,1738540243002,-417.50747535,0.00016849,2]
[351360023,1738540243012,-500.0,0.00016849,2]
[351360024,1738540243023,-500.0,0.00016849,2]
[351360025,1738540243033,-500.0,0.00016849,2]
[351360026,1738540243043,-272.48,0.00016849,2]
[351360027,1738540243052,-500.0,0.00016849,2]
[351360028,1738540243063,-1104.1,0.00016849,2]
[351360029,1738540243073,-883.74,0.00016849,2]
[351360030,1738540243083,-1189.38,0.00016849,2]
[351360031,1738540243093,-500.0,0.00016849,2]
[351360032,1738540243103,-500.0,0.00016849,2]
[351360033,1738540243113,-563.36,0.00016849,2]
[351360035,1738540243124,-500.0,0.00016849,2]
[351360037,1738540243134,-2891.00298086,0.00016849,2]
[351360071,1738540244993,-586.46701914,0.00016849,2]
[351360072,1738540245002,-500.0,0.00016849,2]
[351360073,1738540245013,-1233.12050314,0.00016849,2]
[351360074,1738540245025,-302.23434211,0.00016849,2]
[351360075,1738540245063,-555.63515475,0.00016849,2]
[351360076,1738540245073,-500.0,0.00016849,2]
[351360077,1738540245083,-509.24,0.00016849,2]
[351360078,1738540245093,-500.0,0.00016849,2]
[351360079,1738540245102,-1182.98,0.00016849,2]
[351360080,1738540245112,-1178.65,0.00016849,2]
[351360081,1738540245121,-207.68366856,0.000169,2]
[351360082,1738540245131,-154.698,0.0001691,2]
[351360083,1738540245140,-83.01317669,0.00016934,2]
[351360099,1738540247038,-162.811462,0.00016681,2]
[351360100,1738540247049,-124.67049186,0.00016934,2]
[351360101,1738540247059,-207.68366855,0.00016969,2]
[351360102,1738540247069,-176.222839,0.00016986,2]
[351360103,1738540247079,-383.85,0.00016986,2]
[351360104,1738540247089,-455.61648804,0.00016986,2]
[351360107,1738540576506,-22491.0,0.000178,15]
[351360109,1738540616839,-25000.0,0.000178,15]
[351360110,1738540685304,-73008.755909,0.000178,15]
[351360111,1738540734608,156.47032187,0.0001,2]
[351360114,1738540831925,160.0,0.00020125,120]
[351360116,1738540880346,-3822.488182,0.000178,15]
[351360120,1738540891313,-25000.0,0.000178,15]
[351360121,1738540895964,-25000.0,0.000178,15]
[351360123,1738540951375,160.0,0.00019602,120]
[351360178,1738541011331,160.0,0.00018778,120]
[351360263,1738541056724,-24680.0,0.000178,15]
[351360344,1738541082877,241.401028,0.00013973,2]
[351360354,1738541088785,-25000.0,0.000178,15]
[351360433,1738541123970,-25000.0,0.000178,15]
[351360450,1738541132794,160.0,0.00018808,120]
[351360659,1738541222168,-24840.0,0.000178,15]
[351360726,1738541251539,160.0,0.00019093,120]
[351360769,1738541270633,-24840.0,0.000178,15]
[351360830,1738541298926,-25000.0,0.000178,15]
[351360931,1738541346067,-25000.0,0.000178,15]
[351360967,1738541367816,-25000.0,0.000178,15]
[351361018,1738541399717,-25000.0,0.000178,15]
[351361024,1738541403980,-25000.0,0.000178,15]
[351361124,1738541436568,-225.556115,0.00015273,2]
[351361125,1738541436581,-12129.1217438,0.00015447,2]
[351361126,1738541436593,-250.0,0.00015469,2]
[351361127,1738541436604,-345.56243075,0.00015753,2]
[351361128,1738541436614,-500.0,0.00015753,2]
[351361129,1738541436625,-171.81063505,0.00016338,2]
[351361130,1738541436635,-26547.51982329,0.000164,2]
[351361131,1738541436646,-500.0,0.00016437,2]
[351361132,1738541436658,-172.22644187,0.00016437,2]
[351361133,1738541436669,-500.0,0.00016437,2]
[351361134,1738541436680,-284.0116696,0.00016437,2]
[351361135,1738541436691,-500.0,0.00016437,2]
[351361136,1738541436703,-520.37838226,0.00016438,2]
[351361137,1738541436717,-500.0,0.00016438,2]
[351361138,1738541436728,-500.0,0.00016438,2]
[351361139,1738541436740,-500.0,0.00016438,2]
[351361140,1738541436751,-500.81904919,0.00016438,2]
[351361141,1738541436762,-500.0,0.00016438,2]
[351361142,1738541436772,-508.08749264,0.00016438,2]
[351361144,1738541436783,-500.0,0.00016438,2]
[351361146,1738541436793,-500.0,0.00016438,2]
[351361148,1738541436803,-500.0,0.00016438,2]
[351361150,1738541436813,-506.32837874,0.00016438,2]
[351361152,1738541436823,-500.0,0.00016438,2]
[351361154,1738541436832,-500.0,0.00016438,2]
[351361156,1738541436842,-500.0,0.00016438,2]
[351361158,1738541436852,-500.0,0.00016438,2]
[351361160,1738541436862,-500.0,0.00016438,2]
[351361163,1738541436871,-500.0,0.00016438,2]
[351361165,1738541436881,-428.10145528,0.00016438,2]
[351361167,1738541436891,-500.0,0.00016438,2]
[351361170,1738541436902,-500.0,0.00016438,2]
[351361172,1738541436912,-500.0,0.00016438,2]
[351361174,1738541436921,-500.0,0.00016438,2]
[351361176,1738541436932,-500.0,0.00016438,2]
[351361178,1738541436942,-500.0,0.00016438,2]
[351361180,1738541436951,-500.0,0.00016438,2]
[351361182,1738541436964,-501.23476105,0.00016438,2]
[351361184,1738541436974,-500.0,0.00016438,2]
[351361186,1738541436984,-500.0,0.00016438,2]
[351361188,1738541436995,-501.69804618,0.00016438,2]
[351361190,1738541437005,-500.0,0.00016438,2]
[351361192,1738541437015,-500.0,0.00016438,2]
[351361193,1738541437025,-500.0,0.00016438,2]
[351361194,1738541437036,-511.85820235,0.00016438,2]
[351361195,1738541437047,-500.0,0.00016438,2]
[351361196,1738541437056,-500.0,0.00016438,2]
[351361197,1738541437070,-500.0,0.00016438,2]
[351361198,1738541437239,-500.0,0.00016438,2]
[351361199,1738541437251,-500.0,0.00016438,2]
[351361200,1738541437262,-500.0,0.00016438,2]
[351361201,1738541437272,-495.6181898,0.00016438,2]
[351361202,1738541437282,-507.08148543,0.00016438,2]
[351361203,1738541437294,-500.0,0.00016438,2]
[351361204,1738541437305,-500.0,0.00016438,2]
[351361206,1738541437318,-500.0,0.00016438,2]
[351361208,1738541437328,-518.3623816,0.00016438,2]
[351361209,1738541437338,-500.0,0.00016438,2]
[351361211,1738541437348,-504.40620073,0.00016438,2]
[351361213,1738541437358,-504.04305189,0.00016438,2]
[351361216,1738541437367,-500.0,0.00016438,2]
[351361218,1738541437377,-503.03685126,0.00016438,2]
[351361219,1738541437387,-500.0,0.00016438,2]
[351361221,1738541437398,-500.0,0.00016438,2]
[351361223,1738541437407,-504.99967242,0.00016438,2]
[351361226,1738541437417,-500.0,0.00016438,2]
[351361227,1738541437427,-500.0,0.00016438,2]
[351361230,1738541437437,-500.0,0.00016438,2]
[351361232,1738541437456,-402.3773098,0.00016438,2]
[351361235,1738541437489,-500.0,0.00016438,2]
[351361238,1738541437523,-501.00275463,0.00016438,2]
[351361241,1738541437554,-500.0,0.00016438,2]
[351361244,1738541437578,-500.0,0.00016438,2]
[351361246,1738541437605,-500.0,0.00016438,2]
[351361249,1738541437629,-500.0,0.00016438,2]
[351361251,1738541437653,-500.0,0.00016438,2]
[351361252,1738541437675,-157.54760887,0.00016438,2]
[351361253,1738541437700,-494.0,0.00016438,2]
[351361254,1738541437725,-202.04903747,0.00016438,2]
[351361255,1738541437735,-500.0,0.00016438,2]
[351361256,1738541437745,-500.0,0.00016438,2]
[351361257,1738541437754,-350.24755291,0.00016438,2]
[351361258,1738541437764,-481.57282776,0.00016438,2]
[351361259,1738541437774,-500.0,0.00016438,2]
[351361260,1738541437783,-500.0,0.00016438,2]
[351361261,1738541437793,-500.0,0.00016438,2]
[351361262,1738541437803,-500.0,0.00016438,2]
[351361263,1738541437812,-500.0,0.00016438,2]
[351361264,1738541437822,-179.43242056,0.00016438,2]
[351361265,1738541437832,-500.0,0.00016438,2]
[351361266,1738541437841,-500.0,0.00016438,2]
[351361267,1738541437851,-500.0,0.00016438,2]
[351361269,1738541437861,-503.30582109,0.00016438,2]
[351361271,1738541437870,-500.0,0.00016438,2]
[351361273,1738541437880,-500.0,0.00016438,2]
[351361274,1738541437889,-503.84663823,0.00016438,2]
[351361276,1738541437899,-500.0,0.00016438,2]
[351361278,1738541437908,-500.0,0.00016438,2]
[351361279,1738541437918,-500.0,0.00016438,2]
[351361280,1738541437927,-500.0,0.00016438,2]
[351361281,1738541437939,-500.0,0.00016438,2]
[351361283,1738541437948,-500.0,0.00016438,2]
[351361284,1738541437958,-500.0,0.00016438,2]
[351361285,1738541437971,-502.37686188,0.00016438,2]
[351361286,1738541437981,-500.0,0.00016438,2]
[351361287,1738541437991,-504.31827618,0.00016438,2]
[351361288,1738541438000,-500.0,0.00016438,2]
[351361289,1738541438011,-500.0,0.00016438,2]
[351361290,1738541438021,-516.38862553,0.00016438,2]
[351361291,1738541438031,-500.0,0.00016438,2]
[351361292,1738541438041,-500.0,0.00016438,2]
[351361293,1738541438050,-500.0,0.00016438,2]
[351361294,1738541438060,-443.41062945,0.00016438,2]
[351361295,1738541438069,-500.0,0.00016438,2]
[351361296,1738541438079,-500.0,0.00016438,2]
[351361297,1738541438089,-500.0,0.00016438,2]
[351361298,1738541438099,-500.0,0.00016438,2]
[351361299,1738541438109,-500.0,0.00016438,2]
[351361300,1738541438119,-500.0,0.00016438,2]
[351361301,1738541438128,-508.62708108,0.00016438,2]
[351361302,1738541438138,-500.0,0.00016438,2]
[351361303,1738541438148,-500.0,0.00016438,2]
[351361304,1738541438158,-504.16045772,0.00016438,2]
[351361306,1738541438167,-500.0,0.00016438,2]
[351361307,1738541438177,-500.0,0.00016438,2]
[351361308,1738541438186,-500.0,0.00016438,2]
[351361309,1738541438195,-505.62695822,0.00016438,2]
[351361310,1738541438205,-626.49,0.00016438,2]
[351361311,1738541438217,-500.0,0.00016438,2]
[351361312,1738541438227,-500.0,0.00016438,2]
[351361313,1738541438236,-500.0,0.00016438,2]
[351361314,1738541438245,-501.93366693,0.00016438,2]
[351361315,1738541438255,-500.0,0.00016438,2]
[351361316,1738541438264,-503.80861029,0.00016438,2]
[351361317,1738541438273,-500.0,0.00016438,2]
[351361318,1738541438283,-500.0,0.00016438,2]
[351361319,1738541438298,-500.0,0.00016438,2]
[351361320,1738541438308,-500.0,0.00016438,2]
[351361321,1738541438318,-500.0,0.00016438,2]
[351361322,1738541438328,-500.0,0.00016438,2]
[351361323,1738541438338,-560.15034623,0.00016438,2]
[351361324,1738541438348,-502.6421088,0.00016438,2]
[351361325,1738541438358,-502.12891973,0.00016438,2]
[351361326,1738541438367,-505.84092978,0.00016438,2]
[351361327,1738541438378,-507.06621769,0.00016438,2]
[351361328,1738541438389,-500.0,0.00016438,2]
[351361329,1738541438398,-500.0,0.00016438,2]
[351361330,1738541438410,-500.0,0.00016438,2]
[351361331,1738541438427,-500.0,0.00016438,2]
[351361332,1738541438440,-500.0,0.00016438,2]
[351361333,1738541438451,-521.80249129,0.00016438,2]
[351361334,1738541438464,-500.0,0.00016438,2]
[351361335,1738541438479,-500.0,0.00016438,2]
[351361336,1738541438491,-500.0,0.00016438,2]
[351361337,1738541438504,-500.0,0.00016438,2]
[351361338,1738541438518,-416.22236119,0.00016438,2]
[351361339,1738541438533,-500.0,0.00016438,2]
[351361340,1738541438545,-500.0,0.00016438,2]
[351361341,1738541438557,-500.0,0.00016438,2]
[351361342,1738541438569,-500.0,0.00016438,2]
[351361343,1738541438581,-507.74582983,0.00016438,2]
[351361344,1738541438596,-500.0,0.00016438,2]
[351361345,1738541438609,-500.0,0.00016438,2]
[351361346,1738541438622,-500.0,0.00016438,2]
[351361347,1738541438636,-625.60647241,0.00016438,2]
[351361348,1738541438650,-500.0,0.00016438,2]
[351361349,1738541438663,-501.83115626,0.00016438,2]
[351361350,1738541438677,-500.0,0.00016438,2]
[351361351,1738541438688,-500.0,0.00016438,2]
[351361352,1738541438700,-466.93887757,0.00016438,2]
[351361353,1738541438718,-2757.74,0.00016438,2]
[351361354,1738541438731,-500.0,0.00016438,2]
[351361355,1738541438743,-502.01378941,0.00016438,2]
[351361356,1738541438758,-500.0,0.00016438,2]
[351361357,1738541438770,-500.0,0.00016438,2]
[351361358,1738541438784,-201.16020265,0.00016438,2]
[351361359,1738541438797,-520.46,0.00016438,2]
[351361360,1738541438811,-500.0,0.00016438,2]
[351361361,1738541438823,-500.0,0.00016438,2]
[351361362,1738541438835,-500.0,0.00016438,2]
[351361363,1738541438847,-500.0,0.00016438,2]
[351361364,1738541438859,-500.0,0.00016438,2]
[351361365,1738541438871,-500.0,0.00016438,2]
[351361366,1738541438887,-500.0,0.00016438,2]
[351361367,1738541438900,-478.4410072,0.00016438,2]
[351361368,1738541438911,-500.0,0.00016438,2]
[351361369,1738541438922,-500.0,0.00016438,2]
[351361370,1738541438933,-501.20312038,0.00016438,2]
[351361371,1738541438946,-500.0,0.00016438,2]
[351361372,1738541438959,-501.07247927,0.00016438,2]
[351361373,1738541438972,-500.0,0.00016438,2]
[351361374,1738541438984,-500.0,0.00016438,2]
[351361375,1738541438995,-500.0,0.00016438,2]
[351361376,1738541439007,-500.0,0.00016438,2]
[351361377,1738541439019,-500.0,0.00016438,2]
[351361378,1738541439030,-517.05463637,0.00016438,2]
[351361379,1738541439042,-500.81672919,0.00016438,2]
[351361380,1738541439053,-500.99123305,0.00016438,2]
[351361381,1738541439065,-500.0,0.00016438,2]
[351361382,1738541439079,-510.52811525,0.00016438,2]
[351361383,1738541439091,-507.61289802,0.00016438,2]
[351361384,1738541439104,-500.0,0.00016438,2]
[351361385,1738541439115,-500.0,0.00016438,2]
[351361386,1738541439127,-1240.72,0.00016438,2]
[351361387,1738541439138,-500.0,0.00016438,2]
[351361388,1738541439149,-502.68275942,0.00016438,2]
[351361389,1738541439161,-500.0,0.00016438,2]
[351361390,1738541439173,-716.86,0.00016438,2]
[351361391,1738541439185,-500.0,0.00016438,2]
[351361392,1738541439197,-502.31158477,0.00016438,2]
[351361393,1738541439209,-500.0,0.00016438,2]
[351361394,1738541439224,-500.0,0.00016438,2]
[351361395,1738541439235,-224.14423402,0.00016438,2]
[351361396,1738541439248,-504.02375588,0.00016438,2]
[351361397,1738541439260,-6364.08,0.00016438,2]
[351361399,1738541439272,-500.0,0.00016438,2]
[351361400,1738541439284,-500.0,0.00016438,2]
[351361401,1738541439297,-500.0,0.00016438,2]
[351361402,1738541439308,-176.29711112,0.00016438,2]
[351361403,1738541439322,-1844.94,0.00016438,2]
[351361406,1738541439334,-537.71253525,0.00016438,2]
[351361407,1738541439346,-500.0,0.00016438,2]
[351361408,1738541439358,-500.0,0.00016438,2]
[351361409,1738541439370,-500.0,0.00016438,2]
[351361410,1738541439384,-674.75,0.00016438,2]
[351361411,1738541439397,-500.0,0.00016438,2]
[351361412,1738541439408,-500.0,0.00016438,2]
[351361413,1738541439421,-500.0,0.00016438,2]
[351361414,1738541439434,-500.0,0.00016438,2]
[351361415,1738541439446,-500.0,0.00016438,2]
[351361416,1738541439459,-500.0,0.00016438,2]
[351361417,1738541439478,-500.0,0.00016438,2]
[351361420,1738541439490,-500.0,0.00016438,2]
[351361422,1738541439502,-500.0,0.00016438,2]
[351361424,1738541439515,-500.0,0.00016438,2]
[351361425,1738541439527,-500.0,0.00016438,2]
[351361426,1738541439538,-1500.58,0.00016438,2]
[351361427,1738541439551,-500.0,0.00016438,2]
[351361428,1738541439563,-613.10156491,0.00016438,2]
[351361429,1738541439575,-5811.31,0.00016438,2]
[351361430,1738541439587,-2427.25,0.00016438,2]
[351361431,1738541439599,-500.0,0.00016438,2]
[351361432,1738541439611,-500.0,0.00016438,2]
[351361433,1738541439622,-500.0,0.00016438,2]
[351361434,1738541439633,-500.0,0.00016438,2]
[351361435,1738541439645,-500.0,0.00016438,2]
[351361442,1738541439800,-500.0,0.00016438,2]
[351361443,1738541439815,-870.97,0.00016438,2]
[351361445,1738541439835,-581.03,0.00016438,2]
[351361447,1738541439849,-500.0,0.00016438,2]
[351361448,1738541439860,-500.0,0.00016438,2]
[351361449,1738541439872,-500.0,0.00016438,2]
[351361450,1738541439883,-500.0,0.00016438,2]
[351361451,1738541439894,-500.0,0.00016438,2]
[351361452,1738541439905,-617.81,0.00016438,2]
[351361453,1738541439915,-335.02158631,0.00016438,2]
[351361454,1738541439926,-500.0,0.00016438,2]
[351361455,1738541439936,-500.0,0.00016438,2]
[351361457,1738541439947,-500.0,0.00016438,2]
[351361458,1738541439957,-1392.23,0.00016438,2]
[351361459,1738541439970,-500.0,0.00016438,2]
[351361460,1738541439991,-651.76,0.00016438,2]
[351361462,1738541440002,-764.75,0.00016438,2]
[351361464,1738541440014,-6758.16,0.00016438,2]
[351361465,1738541440025,-500.0,0.00016438,2]
[351361466,1738541440035,-1590.76,0.00016438,2]
[351361467,1738541440046,-1624.4,0.00016438,2]
[351361468,1738541440057,-500.0,0.00016438,2]
[351361469,1738541440067,-835.77,0.00016438,2]
[351361470,1738541440079,-500.0,0.00016438,7]
[351361471,1738541440090,-4356.73,0.00016438,2]
[351361473,1738541440100,-500.0,0.00016438,2]
[351361474,1738541440111,-500.0,0.00016438,2]
[351361475,1738541440121,-672.23,0.00016438,2]
[351361476,1738541440131,-501.77299899,0.00016438,2]
[351361477,1738541440142,-583.4,0.00016438,2]
[351361478,1738541440152,-500.0,0.00016438,2]
[351361479,1738541440162,-500.0,0.00016438,2]
[351361480,1738541440172,-506.58122246,0.00016438,2]
[351361481,1738541440182,-500.0,0.00016438,2]
[351361482,1738541440193,-500.0,0.00016438,2]
[351361483,1738541440203,-698.53,0.00016438,2]
[351361484,1738541440215,-500.0,0.00016438,2]
[351361485,1738541440226,-500.0,0.00016438,2]
[351361486,1738541440236,-1612.7,0.00016438,2]
[351361487,1738541440246,-500.0,0.00016438,2]
[351361488,1738541440257,-151.0,0.000165,2]
[351361489,1738541440267,-548.49764011,0.00016573,2]
[351361490,1738541440277,-606.60522008,0.00016573,2]
[351361492,1738541440290,-500.0,0.00016573,2]
[351361493,1738541440300,-500.0,0.00016574,2]
[351361495,1738541440312,-500.0,0.00016574,2]
[351361496,1738541440323,-440.41674684,0.00016574,2]
[351361497,1738541440335,-500.0,0.00016574,2]
[351361498,1738541440347,-500.0,0.00016574,2]
[351361499,1738541440358,-500.0,0.00016574,2]
[351361500,1738541440368,-500.0,0.00016575,2]
[351361501,1738541440378,-517.84468264,0.00016575,2]
[351361502,1738541440388,-502.02526665,0.00016575,2]
[351361503,1738541440398,-500.0,0.00016575,2]
[351361504,1738541440408,-500.0,0.00016575,2]
[351361505,1738541440419,-500.0,0.00016575,2]
[351361506,1738541440430,-500.0,0.00016575,2]
[351361507,1738541440440,-500.0,0.00016575,2]
[351361508,1738541440450,-454.46968282,0.00016575,2]
[351361509,1738541440459,-500.0,0.00016575,2]
[351361510,1738541440471,-503.19725641,0.00016575,2]
[351361511,1738541440481,-500.0,0.00016575,2]
[351361512,1738541440490,-519.88467087,0.00016575,2]
[351361513,1738541440500,-500.0,0.00016575,2]
[351361514,1738541440510,-500.0,0.00016575,2]
[351361515,1738541440521,-500.0,0.00016575,2]
[351361516,1738541440530,-500.0,0.00016575,2]
[351361517,1738541440539,-500.0,0.00016575,2]
[351361518,1738541440549,-500.0,0.00016575,2]
[351361519,1738541440559,-500.0,0.00016575,2]
[351361520,1738541440568,-500.0,0.00016575,2]
[351361521,1738541440579,-500.0,0.00016575,2]
[351361522,1738541440590,-500.0,0.00016575,2]
[351361523,1738541440600,-500.0,0.00016575,2]
[351361524,1738541440609,-389.98013798,0.00016575,2]
[351361525,1738541440618,-500.0,0.00016575,2]